fUSD/lending_fUSD_20240825
["ID","MTS","AMOUNT","RATE_DAILY","PERIOD"]
[335886559,1724571048277,-572.74741371,0.00010991,2]
[335886560,1724571048287,-3389.97,0.00010991,2]
[335886561,1724571048296,-500.0,0.00010991,2]
[335886562,1724571048305,-500.0,0.00010991,2]
[335886563,1724571048314,-500.0,0.00010991,2]
[335886564,1724571048323,-500.0,0.00010991,2]
[335886565,1724571048333,-1249.93,0.00010991,2]
[335886566,1724571048342,-500.0,0.00010991,2]
[335886567,1724571048351,-500.0,0.00010991,2]
[335886568,1724571048360,-500.0,0.00010991,2]
[335886569,1724571048369,-500.0,0.00010991,2]
[335886570,1724571048378,-2876.76,0.00010991,2]
[335886571,1724571048387,-637.14,0.00010991,2]
[335886572,1724571048396,-500.0,0.00010991,2]
[335886573,1724571048405,-8500.0,0.00010991,2]
[335886574,1724571048415,-152.86473438,0.00010991,2]
[335886575,1724571048424,-500.0,0.00010992,2]
[335886576,1724571048434,-500.0,0.00010992,2]
[335886577,1724571048448,-500.0,0.00010992,2]
[335886578,1724571048457,-500.0,0.00010992,2]
[335886579,1724571048467,-500.0,0.00010992,2]
[335886580,1724571048476,-500.0,0.00010992,2]
[335886581,1724571048487,-500.0,0.00010992,2]
[335886582,1724571048496,-500.0,0.00010992,2]
[335886583,1724571048506,-500.0,0.00010992,2]
[335886584,1724571048515,-500.0,0.00010992,2]
[335886585,1724571048526,-500.0,0.00010992,2]
[335886586,1724571048535,-500.0,0.00010992,2]
[335886587,1724571048544,-500.0,0.00010992,2]
[335886588,1724571048554,-500.0,0.00010992,2]
[335886589,1724571048563,-500.0,0.00010992,2]
[335886590,1724571048572,-500.0,0.00010992,2]
[335886591,1724571048582,-500.0,0.00010992,2]
[335886592,1724571048591,-500.0,0.00010992,2]
[335886593,1724571048600,-500.0,0.00010992,2]
[335886594,1724571048609,-500.0,0.00010992,2]
[335886595,1724571048619,-542.25936099,0.00010992,2]
[335886596,1724571048633,-500.0,0.00010992,2]
[335886597,1724571048642,-500.0,0.00010992,2]
[335886598,1724571048651,-500.0,0.00010992,2]
[335886599,1724571048660,-525.86,0.00010992,2]
[335886600,1724571048671,-500.0,0.00010992,2]
[335886601,1724571048680,-500.0,0.00010992,2]
[335886602,1724571048690,-500.0,0.00010992,2]
[335886603,1724571048700,-500.0,0.00010992,2]
[335886604,1724571048709,-500.0,0.00010992,2]
[335886605,1724571048718,-500.0,0.00010992,2]
[335886606,1724571048727,-500.0,0.00010992,2]
[335886607,1724571048736,-500.0,0.00010992,2]
[335886608,1724571048746,-500.0,0.00010992,2]
[335886609,1724571048758,-500.0,0.00010992,2]
[335886610,1724571048768,-612.78,0.00010992,2]
[335886611,1724571048778,-500.0,0.00010992,2]
[335886612,1724571048787,-500.0,0.00010992,2]
[335886613,1724571048796,-500.0,0.00010992,2]
[335886614,1724571048806,-500.0,0.00010992,2]
[335886615,1724571048815,-500.0,0.00010992,2]
[335886616,1724571048824,-500.0,0.00010992,2]
[335886617,1724571048833,-500.0,0.00010992,2]
[335886618,1724571048843,-2107.31,0.00010992,2]
[335886619,1724571048853,-1099.86,0.00010992,2]
[335886620,1724571048863,-500.0,0.00010992,2]
[335886621,1724571048873,-3213.46,0.00010992,2]
[335886622,1724571048882,-500.0,0.00010992,2]
[335886623,1724571048891,-500.0,0.00010992,2]
[335886624,1724571048900,-500.0,0.00010992,2]
[335886625,1724571048910,-500.0,0.00010992,2]
[335886626,1724571048919,-500.0,0.00010992,2]
[335886627,1724571049080,-1426.91,0.00010992,2]
[335886628,1724571049090,-246.54826089,0.00010992,2]
[335886629,1724571049099,-500.0,0.00010992,2]
[335886630,1724571049109,-500.0,0.00010992,2]
[335886631,1724571049118,-500.0,0.00010992,2]
[335886632,1724571049128,-1714.16,0.00010992,2]
[335886633,1724571049138,-500.95236894,0.00010992,2]
[335886634,1724571049148,-2152.54,0.00010992,2]
[335886635,1724571049160,-708.31,0.00010992,2]
[335886636,1724571049170,-1183.7,0.00010992,2]
[335886637,1724571049180,-686.03,0.00010992,2]
[335886638,1724571049194,-500.0,0.00010992,2]
[335886639,1724571049206,-971.96,0.00010992,2]
[335886640,1724571049215,-500.0,0.00010992,2]
[335886641,1724571049224,-500.0,0.00010992,2]
[335886642,1724571049234,-500.0,0.00010992,2]
[335886643,1724571049244,-1413.6,0.00010992,2]
[335886644,1724571049254,-500.0,0.00010992,2]
[335886645,1724571049263,-500.0,0.00010992,2]
[335886646,1724571049273,-500.0,0.00010992,2]
[335886647,1724571049282,-500.0,0.00010992,2]
[335886648,1724571049292,-500.0,0.00010992,2]
[335886649,1724571049302,-500.0,0.00010992,2]
[335886650,1724571049311,-500.0,0.00010992,2]
[335886651,1724571049320,-500.0,0.00010992,2]
[335886652,1724571049330,-500.0,0.00010992,2]
[335886653,1724571049339,-500.0,0.00010992,2]
[335886654,1724571049348,-339.27789895,0.00010992,2]
[335886655,1724571049358,-500.0,0.00010992,2]
[335886656,1724571049368,-500.0,0.00010992,2]
[335886657,1724571049377,-500.0,0.00010992,2]
[335886658,1724571049387,-1659.68,0.00010992,2]
[335886659,1724571049397,-500.0,0.00010992,2]
[335886660,1724571049407,-500.0,0.00010992,2]
[335886661,1724571049416,-500.0,0.00010992,2]
[335886662,1724571049425,-500.0,0.00010992,2]
[335886663,1724571049436,-500.0,0.00010992,2]
[335886664,1724571049446,-917.83,0.00010992,2]
[335886665,1724571049458,-500.0,0.00010992,2]
[335886666,1724571049467,-500.0,0.00010992,2]
[335886667,1724571049476,-1892.01,0.00010992,2]
[335886668,1724571049486,-500.0,0.00010992,2]
[335886669,1724571049495,-1214.7,0.00010992,2]
[335886670,1724571049504,-500.0,0.00010992,2]
[335886671,1724571049513,-500.0,0.00010992,2]
[335886672,1724571049523,-2683.99,0.00010992,2]
[335886673,1724571049532,-525.86,0.00010992,2]
[335886674,1724571049542,-500.0,0.00010992,2]
[335886675,1724571049552,-500.0,0.00010992,2]
[335886676,1724571049562,-2306.73,0.00010992,2]
[335886677,1724571049571,-2295.13,0.00010992,2]
[335886678,1724571049580,-500.0,0.00010992,2]
[335886679,1724571049590,-500.0,0.00010992,2]
[335886680,1724571049599,-500.0,0.00010992,2]
[335886681,1724571049608,-500.0,0.00010992,2]
[335886682,1724571049617,-500.0,0.00010992,2]
[335886683,1724571049626,-500.0,0.00010992,2]
[335886684,1724571049635,-500.0,0.00010992,2]
[335886685,1724571049644,-500.0,0.00010992,2]
[335886686,1724571049653,-500.0,0.00010992,2]
[335886687,1724571049662,-500.0,0.00010992,2]
[335886688,1724571049672,-500.0,0.00010992,2]
[335886689,1724571049681,-500.0,0.00010992,2]
[335886690,1724571049690,-500.0,0.00010992,2]
[335886691,1724571049699,-500.0,0.00010992,2]
[335886692,1724571049709,-500.0,0.00010992,2]
[335886693,1724571049718,-500.0,0.00010992,2]
[335886694,1724571049727,-500.0,0.00010992,2]
[335886695,1724571049737,-500.0,0.00010992,2]
[335886696,1724571049746,-500.0,0.00010992,2]
[335886697,1724571049755,-500.0,0.00010992,2]
[335886698,1724571049765,-500.0,0.00010992,2]
[335886699,1724571049774,-163.03132972,0.00010992,2]
[335886700,1724571049784,-621.1,0.00010992,2]
[335886701,1724571049793,-500.0,0.00010992,2]
[335886702,1724571049802,-500.0,0.00010992,2]
[335886703,1724571049812,-436.17470821,0.00010992,2]
[335886704,1724571049821,-500.0,0.00010992,2]
[335886705,1724571049830,-500.0,0.00010992,2]
[335886706,1724571049840,-500.0,0.00010992,2]
[335886707,1724571049849,-500.0,0.00010992,2]
[335886708,1724571049858,-500.0,0.00010992,2]
[335886709,1724571049867,-579.16,0.00010992,2]
[335886710,1724571049877,-500.0,0.00010992,2]
[335886711,1724571049887,-500.0,0.00010992,2]
[335886712,1724571049896,-500.0,0.00010992,2]
[335886713,1724571049905,-580.0,0.00010992,2]
[335886714,1724571049914,-500.0,0.00010992,2]
[335886715,1724571049923,-581.94,0.00010992,2]
[335886716,1724571049933,-493.10639607,0.00010992,2]
[335886717,1724571049943,-447.10381461,0.00010992,2]
[335886718,1724571049955,-500.0,0.00010992,2]
[335886719,1724571049964,-500.0,0.00010992,2]
[335886720,1724571049974,-500.0,0.00010992,2]
[335886721,1724571049983,-500.0,0.00010992,2]
[335886722,1724571049992,-500.0,0.00010992,2]
[335886723,1724571050001,-526.2,0.00010992,2]
[335886724,1724571050010,-500.0,0.00010992,2]
[335886725,1724571050018,-500.0,0.00010992,2]
[335886726,1724571050027,-500.0,0.00010992,2]
[335886727,1724571050036,-514.46533971,0.00010992,2]
[335886728,1724571050046,-500.0,0.00010992,2]
[335886729,1724571050055,-761.35,0.00010992,2]
[335886730,1724571050065,-500.0,0.00010992,2]
[335886731,1724571050074,-529.45,0.00010992,2]
[335886732,1724571050083,-722.21,0.00010992,2]
[335886733,1724571050092,-500.0,0.00010992,2]
[335886734,1724571050101,-500.0,0.00010992,2]
[335886735,1724571050111,-500.0,0.00010992,2]
[335886736,1724571050120,-500.0,0.00010992,2]
[335886737,1724571050129,-579.84,0.00010992,2]
[335886738,1724571050139,-500.0,0.00010992,2]
[335886739,1724571050148,-500.0,0.00010992,2]
[335886740,1724571050157,-500.0,0.00010992,2]
[335886741,1724571050166,-837.94,0.00010992,2]
[335886742,1724571050175,-500.0,0.00010992,2]
[335886743,1724571050185,-499.81026194,0.00010992,2]
[335886744,1724571050194,-923.9,0.00010992,2]
[335886745,1724571050203,-500.0,0.00010992,2]
[335886746,1724571050213,-529.86,0.00010992,2]
[335886747,1724571050222,-500.0,0.00010992,2]
[335886748,1724571050231,-500.0,0.00010992,2]
[335886749,1724571050241,-656.9,0.00010992,2]
[335886750,1724571050250,-500.0,0.00010992,2]
[335886751,1724571050259,-500.0,0.00010992,2]
[335886752,1724571050269,-500.0,0.00010992,2]
[335886753,1724571050278,-500.0,0.00010992,2]
[335886754,1724571050287,-500.0,0.00010992,2]
[335886755,1724571050297,-500.0,0.00010992,2]
[335886756,1724571050306,-1131.98,0.00010992,2]
[335886757,1724571050315,-500.0,0.00010992,2]
[335886758,1724571050326,-500.0,0.00010992,2]
[335886759,1724571050335,-742.4,0.00010992,2]
[335886760,1724571050345,-477.18692472,0.00010992,2]
[335886761,1724571050355,-500.0,0.00010992,2]
[335886762,1724571050364,-500.0,0.00010992,2]
[335886763,1724571050373,-500.0,0.00010992,2]
[335886764,1724571050382,-1708.06,0.00010992,2]
[335886765,1724571050391,-500.0,0.00010992,2]
[335886766,1724571050400,-501.48871753,0.00010992,2]
[335886767,1724571050409,-500.0,0.00010992,2]
[335886768,1724571050419,-500.0,0.00010992,2]
[335886769,1724571050431,-588.92,0.00010992,2]
[335886770,1724571050442,-805.39,0.00010992,2]
[335886771,1724571050452,-500.0,0.00010992,2]
[335886772,1724571050462,-500.0,0.00010992,2]
[335886773,1724571050471,-500.0,0.00010992,2]
[335886774,1724571050480,-500.0,0.00010992,2]
[335886775,1724571050490,-500.0,0.00010992,2]
[335886776,1724571050499,-500.0,0.00010992,2]
[335886777,1724571050508,-500.0,0.00010992,2]
[335886778,1724571050519,-500.0,0.00010992,2]
[335886779,1724571050528,-500.0,0.00010992,2]
[335886780,1724571050537,-766.02,0.00010992,2]
[335886781,1724571050546,-500.0,0.00010992,2]
[335886782,1724571050555,-440.33811776,0.00010992,2]
[335886783,1724571050564,-500.0,0.00010992,2]
[335886784,1724571050574,-500.0,0.00010992,2]
[335886785,1724571050583,-500.0,0.00010992,2]
[335886786,1724571050592,-500.0,0.00010992,2]
[335886787,1724571050601,-500.0,0.00010992,2]
[335886788,1724571050610,-500.0,0.00010992,2]
[335886789,1724571050619,-500.0,0.00010992,2]
[335886790,1724571050628,-500.0,0.00010992,2]
[335886791,1724571050637,-500.0,0.00010992,2]
[335886792,1724571050646,-500.0,0.00010992,2]
[335886793,1724571050656,-500.0,0.00010992,2]
[335886794,1724571050665,-500.0,0.00010992,2]
[335886795,1724571050674,-500.0,0.00010992,2]
[335886796,1724571050683,-681.18,0.00010992,2]
[335886797,1724571050691,-229.96458279,0.00010992,2]
[335886798,1724571050701,-500.0,0.00010992,2]
[335886799,1724571050711,-499.20921331,0.00010992,2]
[335886800,1724571050720,-522.84596407,0.00010992,2]
[335886801,1724571050729,-900.22,0.00010992,2]
[335886802,1724571050738,-500.5108465,0.00010992,2]
[335886803,1724571050747,-500.0,0.00010992,2]
[335886804,1724571050756,-500.0,0.00010992,2]
[335886805,1724571050765,-500.0,0.00010992,2]
[335886806,1724571050775,-500.0,0.00010992,2]
[335886807,1724571050784,-500.0,0.00010992,2]
[335886808,1724571050794,-500.0,0.00010992,2]
[335886809,1724571050803,-500.0,0.00010992,2]
[335886810,1724571050812,-530.19,0.00010992,2]
[335886811,1724571050822,-500.0,0.00010992,2]
[335886812,1724571050831,-500.0,0.00010992,2]
[335886813,1724571050840,-500.0,0.00010992,2]
[335886814,1724571050850,-500.0,0.00010992,2]
[335886815,1724571050859,-500.0,0.00010993,2]
[335886816,1724571050868,-538.68,0.00010993,2]
[335886817,1724571050878,-500.0,0.00010993,2]
[335886818,1724571050887,-500.0,0.00010993,2]
[335886819,1724571050896,-181.21470066,0.00010993,2]
[335886820,1724571050905,-500.0,0.00010993,2]
[335886821,1724571050914,-500.0,0.00010993,2]
[335886822,1724571050924,-500.0,0.00010993,2]
[335886823,1724571050933,-500.0,0.00010993,2]
[335886824,1724571050942,-500.0,0.00010993,2]
[335886825,1724571050951,-500.0,0.00010993,2]
[335886826,1724571050960,-500.0,0.00010993,2]
[335886827,1724571050969,-500.0,0.00010993,2]
[335886828,1724571050979,-579.6,0.00010993,2]
[335886829,1724571050988,-500.0,0.00010993,2]
[335886830,1724571050997,-500.0,0.00010993,2]
[335886831,1724571051006,-500.0,0.00010993,2]
[335886832,1724571051015,-500.0,0.00010993,2]
[335886833,1724571051024,-500.0,0.00010993,2]
[335886834,1724571051033,-500.0,0.00010993,2]
[335886835,1724571051041,-500.0,0.00010993,2]
[335886836,1724571051050,-579.75,0.00010993,2]
[335886837,1724571051060,-500.0,0.00010993,2]
[335886838,1724571051069,-500.0,0.00010993,2]
[335886839,1724571051078,-500.0,0.00010993,2]
[335886840,1724571051087,-500.0,0.00010993,2]
[335886841,1724571051096,-500.0,0.00010993,2]
[335886842,1724571051105,-500.0,0.00010993,2]
[335886843,1724571051115,-620.7,0.00010993,2]
[335886844,1724571051124,-500.0,0.00010993,2]
[335886845,1724571051133,-500.0,0.00010993,2]
[335886846,1724571051142,-363.95,0.00010993,2]
[335886847,1724571051151,-618.33,0.00010993,2]
[335886848,1724571051164,-500.0,0.00010993,2]
[335886849,1724571051172,-500.0,0.00010993,2]
[335886850,1724571051182,-500.0,0.00010993,2]
[335886851,1724571051191,-500.0,0.00010993,2]
[335886852,1724571051211,-500.0,0.00010993,2]
[335886853,1724571051220,-500.0,0.00010993,2]
[335886854,1724571051229,-72.63509285,0.00010993,2]
[335886855,1724571051761,-427.36490715,0.00010993,2]
[335886856,1724571051770,-320.17996739,0.00010993,2]
[335886857,1724571051964,-204.45003261,0.00010993,2]
[335886858,1724571051973,-500.0,0.00010993,2]
[335886859,1724571051983,-500.0,0.00010993,2]
[335886860,1724571051991,-500.0,0.00010993,2]
[335886861,1724571052000,-500.0,0.00010993,2]
[335886862,1724571052010,-500.0,0.00010993,2]
[335886863,1724571052019,-500.0,0.00010993,2]
[335886864,1724571052028,-186.96267101,0.00010993,2]
[335886865,1724571052039,-313.03732899,0.00010993,2]
[335886866,1724571052048,-500.0,0.00010993,2]
[335886867,1724571052057,-508.2,0.00010993,2]
[335886868,1724571052066,-500.0,0.00010993,2]
[335886869,1724571052075,-500.0,0.00010993,2]
[335886870,1724571052085,-500.0,0.00010993,2]
[335886871,1724571052094,-500.0,0.00010993,2]
[335886872,1724571052103,-375.70891295,0.00010993,2]
[335886873,1724571052113,-551.07,0.00010993,2]
[335886874,1724571052122,-500.0,0.00010993,2]
[335886875,1724571052131,-500.0,0.00010993,2]
[335886876,1724571052140,-500.0,0.00010993,2]
[335886877,1724571052149,-336.55164542,0.00010993,2]
[335886878,1724571052165,-340.57835458,0.00010993,2]
[335886879,1724571052174,-500.0,0.00010993,2]
[335886880,1724571052183,-500.0,0.00010993,2]
[335886881,1724571052198,-500.0,0.00010993,2]
[335886882,1724571052208,-500.0,0.00010993,2]
[335886883,1724571052217,-500.0,0.00010993,2]
[335886884,1724571052227,-500.0,0.00010993,2]
[335886885,1724571052236,-500.0,0.00010993,2]
[335886886,1724571052245,-500.0,0.00010993,2]
[335886887,1724571052254,-500.0,0.00010993,2]
[335886888,1724571052264,-500.0,0.00010993,2]
[335886889,1724571052274,-500.0,0.00010993,2]
[335886890,1724571052283,-500.0,0.00010993,2]
[335886891,1724571052292,-558.53,0.00010993,2]
[335886892,1724571052302,-206.3,0.00010993,2]
[335886893,1724571052312,-500.0,0.00010993,2]
[335886894,1724571052321,-500.0,0.00010993,2]
[335886895,1724571052330,-500.0,0.00010993,2]
[335886896,1724571052339,-500.0,0.00010993,2]
[335886897,1724571052348,-500.0,0.00010993,2]
[335886898,1724571052358,-732.24,0.00010993,2]
[335886899,1724571052367,-183.88128837,0.00010993,2]
[335886900,1724571052379,-316.11871163,0.00010993,2]
[335886901,1724571052388,-500.0,0.00010993,2]
[335886902,1724571052398,-500.0,0.00010993,2]
[335886903,1724571052407,-500.0,0.00010993,2]
[335886904,1724571052416,-500.0,0.00010993,2]
[335886905,1724571052426,-516.70198013,0.00010993,2]
[335886906,1724571052434,-500.0,0.00010993,2]
[335886907,1724571052445,-553.08,0.00010993,2]
[335886908,1724571052458,-500.0,0.00010993,2]
[335886909,1724571052467,-524.0,0.00010993,2]
[335886910,1724571052476,-930.46,0.00010993,2]
[335886911,1724571052486,-819.42,0.00010993,2]
[335886912,1724571052497,-556.02,0.00010993,2]
[335886913,1724571052507,-500.0,0.00010993,2]
[335886914,1724571052516,-500.0,0.00010993,2]
[335886915,1724571052526,-500.0,0.00010993,2]
[335886916,1724571052536,-500.0,0.00010993,2]
[335886917,1724571052545,-500.0,0.00010993,2]
[335886918,1724571052555,-500.0,0.00010993,2]
[335886919,1724571052567,-500.0,0.00010993,2]
[335886920,1724571052577,-500.0,0.00010993,2]
[335886921,1724571052588,-523.27,0.00010993,2]
[335886922,1724571052597,-494.77730824,0.00010993,2]
[335886923,1724571057749,-150.0,0.00010009,2]
[335886924,1724571113175,164.83,9.996e-05,2]
[335886927,1724571118598,500.0,8.22e-05,2]
[335886928,1724571119081,157.24053278,8.22e-05,2]
[335886930,1724571164697,1292.58671897,9.963e-05,2]
[335886933,1724571194673,293.58046742,9.963e-05,2]
[335886934,1724571201143,1274.86593516,9.963e-05,2]
[335886935,1724571243757,505.0,9.981e-05,2]
[335886936,1724571247575,168.14,9.981e-05,2]
[335886937,1724571281742,450.0,9.974e-05,2]
[335886938,1724571391688,509.0,9.974e-05,2]
[335886939,1724571431092,250.0,9.954e-05,2]
[335886940,1724571490700,362.21,8.219e-05,2]
[335886947,1724571691023,160.0,9.9e-05,2]
[335886948,1724571731990,596.0,9.887e-05,2]
[335886950,1724571763724,282.14,9.909e-05,2]
[335886951,1724571781488,160.19,9.918e-05,2]
[335886952,1724571874541,1050.0,0.0001,2]
[335886953,1724571918922,250.0,9.846e-05,2]
[335886954,1724572022288,7080.56,9.821e-05,2]
[335886955,1724572041386,362.57,8.219e-05,2]
[335886956,1724572089246,207.84502602,9.999e-05,2]
[335886957,1724572094731,254.6285931,9.999e-05,2]
[335886959,1724572105140,619.58566799,9.962e-05,2]
[335886971,1724572232174,-150.72468274,0.00010009,2]
[335886972,1724572232184,-316.83560636,0.00010009,2]
[335886973,1724572232194,-155.0,0.00010026,2]
[335886974,1724572232204,-155.0,0.00010097,2]
[335886975,1724572232213,-141.31202236,0.00010097,2]
[335886976,1724572232225,-13.99495456,0.00010097,2]
[335886977,1724572232235,-362.57,0.00010467,2]
[335886978,1724572232244,-56.13703897,0.00010505,2]
[335886980,1724572232261,-572.07031809,0.00010505,2]
[335886982,1724572232270,-300.0,0.00010525,2]
[335886984,1724572232279,-95.69569584,0.00010525,2]
[335886987,1724572232301,-204.30430416,0.00010525,2]
[335886989,1724572232311,-42678.0,0.00010526,2]
[335886991,1724572232320,-11758.95560395,0.00010555,2]
[335886992,1724572232330,-188.632966,0.00010573,2]
[335886994,1724572232339,-424.1,0.00010573,2]
[335886996,1724572232352,-150.0,0.00010658,2]
[335886998,1724572232362,-150.0,0.00010694,2]
[335887000,1724572232375,-4847.37,0.00010694,2]
[335887002,1724572232385,-1000.0,0.00010695,2]
[335887003,1724572232394,-2643.411,0.00010696,2]
[335887004,1724572232404,-3259.2919,0.00010697,2]
[335887005,1724572232415,-6855.8753,0.00010697,2]
[335887006,1724572232424,-1195.42,0.00010772,2]
[335887007,1724572232434,-328026.60936649,0.00010793,2]
[335887008,1724572232443,-155.96653042,0.000108,2]
[335887009,1724572232453,-204.54,0.000108,2]
[335887010,1724572232462,-171.86552435,0.00010858,2]
[335887011,1724572232472,-281.1116,0.00010858,2]
[335887012,1724572232482,-1000.0,0.00010858,2]
[335887013,1724572232492,-500.0,0.00010858,2]
[335887014,1724572232501,-978.2492,0.00010858,2]
[335887015,1724572232511,-1064.4785,0.00010858,2]
[335887016,1724572232521,-383.79,0.00010862,2]
[335887017,1724572232530,-171.86552433,0.00010874,2]
[335887018,1724572232539,-990.47373,0.0001088,2]
[335887019,1724572232548,-151.35904873,0.00010891,2]
[335887020,1724572232558,-453.43497616,0.00010895,2]
[335887021,1724572232567,-1199.01292724,0.00010895,2]
[335887022,1724572232577,-6224.39950182,0.00010896,2]
[335887023,1724572232586,-453.43497616,0.00010898,2]
[335887024,1724572232596,-1199.01292722,0.00010898,2]
[335887025,1724572232604,-199.73100076,0.00010898,2]
[335887026,1724572232614,-155.0,0.00010899,2]
[335887027,1724572232623,-706.69,0.000109,2]
[335887028,1724572232633,-150.0,0.000109,2]
[335887029,1724572232642,-356.9,0.000109,2]
[335887030,1724572232651,-356.95,0.000109,2]
[335887031,1724572232661,-453.43497616,0.000109,2]
[335887032,1724572232670,-356.95,0.000109,2]
[335887033,1724572232680,-151.97,0.00010948,2]
[335887034,1724572232690,-2307.76801665,0.00010955,2]
[335887035,1724572232699,-589.0,0.00010958,2]
[335887036,1724572232708,-500.0,0.00010958,2]
[335887037,1724572232718,-500.0,0.00010958,2]
[335887038,1724572232729,-500.0,0.00010958,2]
[335887039,1724572232738,-485.6993547,0.00010958,2]
[335887040,1724572232748,-500.0,0.00010958,2]
[335887041,1724572232757,-500.0,0.00010958,2]
[335887042,1724572232767,-500.0,0.00010958,2]
[335887043,1724572232776,-506.99,0.00010958,2]
[335887044,1724572232785,-500.0,0.00010958,2]
[335887045,1724572232795,-852.92,0.00010958,2]
[335887046,1724572232805,-500.0,0.00010958,2]
[335887047,1724572232818,-500.0,0.00010958,2]
[335887048,1724572232827,-500.0,0.00010958,2]
[335887049,1724572232837,-500.0,0.00010958,2]
[335887050,1724572232846,-500.0,0.00010958,2]
[335887051,1724572232856,-500.0,0.00010958,2]
[335887052,1724572232865,-1973.16,0.00010958,2]
[335887053,1724572232877,-500.0,0.00010958,2]
[335887054,1724572232888,-500.0,0.00010958,2]
[335887055,1724572232898,-500.0,0.00010958,2]
[335887056,1724572232907,-500.0,0.00010958,2]
[335887057,1724572232916,-500.0,0.00010958,2]
[335887058,1724572232925,-500.0,0.00010958,2]
[335887059,1724572232934,-500.0,0.00010958,2]
[335887060,1724572232943,-500.0,0.00010958,2]
[335887061,1724572232953,-500.0,0.00010958,2]
[335887062,1724572232962,-500.0,0.00010958,2]
[335887063,1724572232971,-500.0,0.00010958,2]
[335887064,1724572232981,-500.0,0.00010958,2]
[335887065,1724572232991,-500.0,0.00010958,2]
[335887066,1724572233000,-500.0,0.00010958,2]
[335887067,1724572233009,-500.0,0.00010958,2]
[335887068,1724572233019,-500.0,0.00010958,2]
[335887069,1724572233029,-500.0,0.00010958,2]
[335887070,1724572233039,-846.63,0.00010958,2]
[335887071,1724572233048,-500.0,0.00010958,2]
[335887072,1724572233058,-500.0,0.00010958,2]
[335887073,1724572233068,-500.0,0.00010958,2]
[335887074,1724572233077,-500.0,0.00010958,2]
[335887075,1724572233086,-636.52,0.00010958,2]
[335887076,1724572233096,-500.0,0.00010958,2]
[335887077,1724572233106,-500.0,0.00010958,2]
[335887078,1724572233115,-500.0,0.00010958,2]
[335887079,1724572233127,-500.0,0.00010958,2]
[335887080,1724572233136,-505.04,0.00010958,2]
[335887081,1724572233145,-500.0,0.00010958,2]
[335887082,1724572233155,-500.0,0.00010958,2]
[335887083,1724572233165,-500.0,0.00010958,2]
[335887084,1724572233174,-500.0,0.00010958,2]
[335887085,1724572233183,-500.0,0.00010958,2]
[335887086,1724572233193,-1113.48,0.00010958,2]
[335887087,1724572233202,-500.0,0.00010958,2]
[335887088,1724572233212,-500.0,0.00010958,2]
[335887089,1724572233221,-500.0,0.00010958,2]
[335887090,1724572233230,-500.0,0.00010958,2]
[335887091,1724572233240,-2114.51,0.00010958,2]
[335887092,1724572233249,-500.0,0.00010958,2]
[335887093,1724572233258,-500.0,0.00010958,2]
[335887094,1724572233268,-500.0,0.00010958,2]